fUST/lending_fUST_20250530
["ID","MTS","AMOUNT","RATE_DAILY","PERIOD"]
[362975947,1748540841042,-430.0,0.00019178,2]
[362975948,1748540841063,-430.0,0.00019178,2]
[362975949,1748540841085,-430.0,0.00019178,2]
[362975950,1748540841106,-430.0,0.00019178,2]
[362975951,1748540841128,-430.0,0.00019178,2]
[362975952,1748540841149,-491.84860978,0.00019178,2]
[362975953,1748540841170,-430.0,0.00019178,2]
[362975954,1748540841191,-430.0,0.00019178,2]
[362975955,1748540841213,-453.83171504,0.00019178,2]
[362975956,1748540841238,-401.57520692,0.00019178,2]
[362975957,1748540841267,-588.0,0.00019178,2]
[362975958,1748540841289,-290.0,0.00019178,2]
[362975959,1748540841312,-430.0,0.00019178,2]
[362975960,1748540841336,-430.0,0.00019178,2]
[362975961,1748540841359,-430.0,0.00019178,2]
[362975962,1748540841384,-6787.9,0.00019178,2]
[362975963,1748540841405,-430.0,0.00019178,2]
[362975964,1748540841428,-500.0,0.00019178,2]
[362975965,1748540841451,-430.0,0.00019178,2]
[362975966,1748540841473,-244.91,0.00019178,2]
[362975967,1748540841498,-430.0,0.00019178,2]
[362975968,1748540841525,-430.0,0.00019178,2]
[362975969,1748540841549,-2861.7,0.00019178,2]
[362975970,1748540841570,-430.0,0.00019178,2]
[362975971,1748540841591,-3371.83,0.00019178,2]
[362975972,1748540841614,-1648.16,0.00019178,2]
[362975973,1748540841638,-459.97,0.00019178,2]
[362975974,1748540841661,-430.0,0.00019178,2]
[362975975,1748540841684,-1388.88,0.00019178,2]
[362975976,1748540841709,-3849.12,0.00019178,2]
[362975977,1748540841735,-430.0,0.00019178,2]
[362975978,1748540841761,-5553.84,0.00019178,2]
[362975979,1748540841788,-5166.23,0.00019178,2]
[362975980,1748540841809,-500.0,0.00019178,2]
[362975981,1748540841831,-430.0,0.00019178,2]
[362975982,1748540841851,-430.0,0.00019178,2]
[362975983,1748540841875,-4550.13,0.00019178,2]
[362975984,1748540841898,-5264.03,0.00019178,2]
[362975985,1748540841920,-430.0,0.00019178,2]
[362975986,1748540841943,-430.0,0.00019178,2]
[362975987,1748540841964,-430.0,0.00019178,2]
[362975988,1748540841986,-808.38,0.00019178,2]
[362975989,1748540842011,-2858.88,0.00019178,2]
[362975990,1748540842031,-430.0,0.00019178,2]
[362975991,1748540842053,-430.0,0.00019178,2]
[362975992,1748540842074,-430.0,0.00019178,2]
[362975993,1748540842096,-293.02,0.00019178,2]
[362975994,1748540842119,-430.0,0.00019178,2]
[362975995,1748540842140,-430.0,0.00019178,2]
[362975996,1748540842163,-430.0,0.00019178,2]
[362975997,1748540842184,-430.0,0.00019178,2]
[362975998,1748540842206,-430.0,0.00019178,2]
[362975999,1748540842229,-1100.76,0.00019178,2]
[362976000,1748540842251,-430.0,0.00019178,2]
[362976001,1748540842281,-430.0,0.00019178,2]
[362976002,1748540842303,-430.0,0.00019178,2]
[362976003,1748540842327,-7137.37,0.00019178,2]
[362976004,1748540842348,-430.0,0.00019178,2]
[362976005,1748540842370,-430.0,0.00019178,2]
[362976006,1748540842392,-430.0,0.00019178,2]
[362976007,1748540842413,-430.0,0.00019178,2]
[362976008,1748540842436,-2117.17,0.00019178,2]
[362976009,1748540842457,-452.44008545,0.00019178,2]
[362976010,1748540842479,-1192.47,0.00019178,2]
[362976011,1748540842501,-176.42,0.00019178,2]
[362976012,1748540842526,-430.0,0.00019178,2]
[362976013,1748540842549,-3282.84,0.00019178,2]
[362976014,1748540842570,-430.0,0.00019178,2]
[362976015,1748540842591,-430.0,0.00019178,2]
[362976016,1748540842610,-430.0,0.00019178,2]
[362976017,1748540842631,-430.0,0.00019178,2]
[362976018,1748540842653,-430.0,0.00019178,2]
[362976019,1748540842682,-4092.84,0.00019178,2]
[362976020,1748540842707,-430.0,0.00019178,2]
[362976021,1748540842732,-2188.1,0.00019178,2]
[362976022,1748540842755,-2731.33,0.00019178,2]
[362976023,1748540842781,-1000.0,0.00019178,2]
[362976024,1748540842804,-430.0,0.00019178,2]
[362976025,1748540842826,-430.0,0.00019178,2]
[362976026,1748540842849,-2240.96,0.00019178,2]
[362976027,1748540842871,-430.0,0.00019178,2]
[362976028,1748540842892,-430.0,0.00019178,2]
[362976029,1748540842915,-430.0,0.00019178,2]
[362976030,1748540842937,-430.0,0.00019178,2]
[362976031,1748540842961,-5329.72,0.00019178,2]
[362976032,1748540842981,-448.07631904,0.00019178,2]
[362976033,1748540843003,-430.0,0.00019178,2]
[362976034,1748540843028,-430.0,0.00019178,2]
[362976035,1748540843052,-1786.22,0.00019178,2]
[362976036,1748540843074,-2518.93,0.00019178,2]
[362976037,1748540843097,-430.0,0.00019178,2]
[362976038,1748540843122,-430.0,0.00019178,2]
[362976039,1748540843144,-249.64013652,0.00019178,2]
[362976040,1748540843166,-430.0,0.00019178,2]
[362976041,1748540843188,-327.28320453,0.00019178,2]
[362976042,1748540843210,-430.0,0.00019178,2]
[362976043,1748540843233,-430.0,0.00019178,2]
[362976044,1748540843259,-500.0,0.00019178,2]
[362976045,1748540843282,-500.0,0.00019178,2]
[362976046,1748540843305,-500.0,0.00019178,2]
[362976047,1748540843328,-500.0,0.00019178,2]
[362976048,1748540843349,-482.40494254,0.00019178,2]
[362976049,1748540843374,-500.0,0.00019178,2]
[362976050,1748540843396,-500.0,0.00019178,2]
[362976051,1748540843419,-499.67881174,0.00019178,2]
[362976052,1748540843544,-0.32118826,0.00019178,2]
[362976053,1748540843567,-430.0,0.00019178,2]
[362976054,1748540843590,-430.0,0.00019178,2]
[362976055,1748540843612,-430.0,0.00019178,2]
[362976056,1748540843746,-430.0,0.00019178,2]
[362976057,1748540843777,-430.0,0.00019178,2]
[362976058,1748540843804,-430.0,0.00019178,2]
[362976059,1748540843828,-4214.92,0.00019178,2]
[362976060,1748540843852,-3359.93,0.00019178,2]
[362976061,1748540843874,-430.0,0.00019178,2]
[362976062,1748540843896,-430.0,0.00019178,2]
[362976063,1748540843919,-270.48066577,0.00019352,2]
[362976064,1748540843943,-500.0,0.00019449,2]
[362976065,1748540843967,-500.0,0.00019449,2]
[362976066,1748540843990,-500.0,0.00019451,2]
[362976067,1748540844016,-500.0,0.00019451,2]
[362976068,1748540844041,-488.94224471,0.00019451,2]
[362976069,1748540844064,-430.0,0.00019452,2]
[362976070,1748540844086,-430.0,0.00019452,2]
[362976071,1748540844110,-2142.25,0.00019452,2]
[362976072,1748540844135,-430.0,0.00019452,2]
[362976073,1748540844161,-430.0,0.00019452,2]
[362976074,1748540844186,-430.0,0.00019452,2]
[362976075,1748540844211,-307.12301286,0.00019452,2]
[362976076,1748540844237,-6787.9,0.00019452,2]
[362976077,1748540844273,-430.0,0.00019452,2]
[362976078,1748540844297,-380.0,0.00019452,2]
[362976079,1748540844322,-2861.7,0.00019452,2]
[362976080,1748540844347,-3371.83,0.00019452,2]
[362976081,1748540844371,-1648.16,0.00019452,2]
[362976082,1748540844398,-459.97,0.00019452,2]
[362976083,1748540844421,-1388.88,0.00019452,2]
[362976084,1748540844446,-3849.12,0.00019452,2]
[362976085,1748540844469,-420.80120319,0.00019452,2]
[362976086,1748540844492,-5553.84,0.00019452,2]
[362976087,1748540844518,-5166.23,0.00019452,2]
[362976088,1748540844540,-500.0,0.00019452,2]
[362976089,1748540844563,-430.0,0.00019452,2]
[362976090,1748540844585,-4550.13,0.00019452,2]
[362976091,1748540844609,-5264.03,0.00019452,2]
[362976092,1748540844631,-430.0,0.00019452,2]
[362976093,1748540844654,-808.38,0.00019452,2]
[362976094,1748540844677,-2858.88,0.00019452,2]
[362976095,1748540844702,-430.0,0.00019452,2]
[362976096,1748540844724,-328.18,0.00019452,2]
[362976097,1748540844748,-430.0,0.00019452,2]
[362976098,1748540844773,-430.0,0.00019452,2]
[362976099,1748540844795,-1100.76,0.00019452,2]
[362976100,1748540844819,-7137.37,0.00019452,2]
[362976101,1748540844840,-430.0,0.00019452,2]
[362976102,1748540844862,-431.39,0.00019452,2]
[362976103,1748540844886,-2117.17,0.00019452,2]
[362976104,1748540844908,-1192.47,0.00019452,2]
[362976105,1748540844928,-430.0,0.00019452,2]
[362976106,1748540844951,-3282.84,0.00019452,2]
[362976107,1748540844973,-4092.84,0.00019452,2]
[362976108,1748540844997,-2188.1,0.00019452,2]
[362976109,1748540845021,-372.27053917,0.00019452,2]
[362976110,1748540845251,-150.0,0.00016526,2]
[362976111,1748540845275,-175.01,0.0001928,2]
[362976112,1748540845297,-875.20054325,0.00019452,2]
[362976113,1748540871568,155.82367302,6.8e-07,2]
[362976114,1748540871722,155.82367302,6.8e-07,2]
[362976115,1748540871915,143.66234709,6.8e-07,2]
[362976116,1748540871936,12.16132593,6.8e-07,2]
[362976122,1748540951356,-6184.9720153,0.00018721,2]
[362976123,1748540951378,-300.0,0.00019177,2]
[362976124,1748540951398,-297.77497359,0.00019177,2]
[362976125,1748540951420,-643.22143668,0.00019177,2]
[362976126,1748540951441,-430.0,0.00019178,2]
[362976127,1748540951463,-430.0,0.00019178,2]
[362976128,1748540951484,-430.0,0.00019178,2]
[362976129,1748540951506,-430.0,0.00019178,2]
[362976130,1748540951526,-159.58999914,0.00019178,2]
[362976140,1748541021254,1088.2298414,0.00018284,120]
[362976163,1748541032462,-158.229376,0.00018574,2]
[362976164,1748541032472,-378.35909204,0.000189,2]
[362976165,1748541032482,-300.0,0.00019177,2]
[362976166,1748541032491,-300.0,0.00019177,2]
[362976167,1748541032501,-1200.0,0.00019177,2]
[362976168,1748541032510,-270.41000086,0.00019178,2]
[362976169,1748541032520,-3428.03,0.00019178,2]
[362976170,1748541032529,-6849.93,0.00019178,2]
[362976171,1748541032538,-430.0,0.00019178,2]
[362976172,1748541032548,-430.0,0.00019178,2]
[362976173,1748541032557,-531.16,0.00019178,2]
[362976174,1748541032565,-430.0,0.00019178,2]
[362976175,1748541032575,-430.0,0.00019178,2]
[362976176,1748541032584,-430.0,0.00019178,2]
[362976177,1748541032594,-430.0,0.00019178,2]
[362976178,1748541032602,-172.25,0.00019178,2]
[362976179,1748541032612,-430.0,0.00019178,2]
[362976180,1748541032622,-430.0,0.00019178,2]
[362976181,1748541032631,-2473.87820403,0.00019178,2]
[362976243,1748541038578,-2170.00179597,0.00019178,2]
[362976246,1748541038588,-1693.54,0.00019178,2]
[362976249,1748541038596,-430.0,0.00019178,2]
[362976252,1748541038604,-430.0,0.00019178,2]
[362976254,1748541038612,-153.49768671,0.00019178,2]
[362976256,1748541038620,-430.0,0.00019178,2]
[362976258,1748541038628,-430.0,0.00019178,2]
[362976260,1748541038638,-430.0,0.00019178,2]
[362976262,1748541038648,-430.0,0.00019178,2]
[362976264,1748541038657,-430.0,0.00019178,2]
[362976266,1748541038666,-430.0,0.00019178,2]
[362976268,1748541038673,-430.0,0.00019178,2]
[362976270,1748541038682,-430.0,0.00019178,2]
[362976272,1748541038690,-430.0,0.00019178,2]
[362976274,1748541038700,-430.0,0.00019178,2]
[362976276,1748541038708,-430.0,0.00019178,2]
[362976278,1748541038718,-432.0471224,0.00019178,2]
[362976280,1748541038727,-430.0,0.00019178,2]
[362976282,1748541038735,-2927.32,0.00019178,2]
[362976284,1748541038744,-554.93132295,0.00019178,2]
[362976286,1748541038757,-430.0,0.00019178,2]
[362976288,1748541038766,-430.0,0.00019178,2]
[362976290,1748541038774,-1296.28,0.00019178,2]
[362976292,1748541038783,-430.0,0.00019178,2]
[362976294,1748541038793,-430.0,0.00019178,2]
[362976296,1748541038801,-430.0,0.00019178,2]
[362976298,1748541038810,-430.0,0.00019178,2]
[362976300,1748541038819,-430.0,0.00019178,2]
[362976302,1748541038829,-6724.51,0.00019178,2]
[362976304,1748541038840,-3938.85,0.00019178,2]
[362976306,1748541038849,-430.0,0.00019178,2]
[362976308,1748541038858,-430.0,0.00019178,2]
[362976310,1748541038867,-430.0,0.00019178,2]
[362976312,1748541038876,-267.38590162,0.00019178,2]
[362976314,1748541038885,-430.0,0.00019178,2]
[362976317,1748541038894,-430.0,0.00019178,2]
[362976318,1748541038901,-430.0,0.00019178,2]
[362976320,1748541038909,-430.0,0.00019178,2]
[362976322,1748541038918,-430.0,0.00019178,2]
[362976324,1748541038925,-5820.04,0.00019178,2]
[362976326,1748541038933,-430.0,0.00019178,2]
[362976328,1748541038940,-430.0,0.00019178,2]
[362976330,1748541038948,-902.69,0.00019178,2]
[362976332,1748541038957,-430.0,0.00019178,2]
[362976334,1748541038967,-430.0,0.00019178,2]
[362976336,1748541038976,-430.0,0.00019178,2]
[362976338,1748541038985,-2152.73,0.00019178,2]
[362976340,1748541038994,-2638.56,0.00019178,2]
[362976342,1748541039004,-430.0,0.00019178,2]
[362976344,1748541039013,-430.0,0.00019178,2]
[362976346,1748541039022,-430.0,0.00019178,2]
[362976348,1748541039031,-430.0,0.00019178,2]
[362976350,1748541039041,-430.0,0.00019178,2]
[362976352,1748541039050,-184.57061891,0.00019178,2]
[362976354,1748541039059,-4861.2,0.00019178,2]
[362976356,1748541039068,-430.0,0.00019178,2]
[362976358,1748541039077,-430.0,0.00019178,2]
[362976360,1748541039086,-430.0,0.00019178,2]
[362976362,1748541039095,-430.0,0.00019178,2]
[362976364,1748541039104,-6560.5,0.00019178,2]
[362976366,1748541039113,-430.0,0.00019178,2]
[362976368,1748541039124,-230.2457122,0.00019178,2]
[362976370,1748541039133,-430.0,0.00019178,2]
[362976373,1748541039142,-430.0,0.00019178,2]
[362976375,1748541039153,-430.0,0.00019178,2]
[362976376,1748541039162,-1116.65,0.00019178,2]
[362976378,1748541039171,-3607.36,0.00019178,2]
[362976381,1748541039180,-430.0,0.00019178,2]
[362976400,1748541039349,-430.0,0.00019178,2]
[362976402,1748541039359,-430.0,0.00019178,2]
[362976404,1748541039369,-430.0,0.00019178,2]
[362976407,1748541039379,-5125.56,0.00019178,2]
[362976408,1748541039389,-430.0,0.00019178,2]
[362976409,1748541039401,-463.73077075,0.00019178,2]
[362976410,1748541039410,-430.0,0.00019178,2]
[362976411,1748541039420,-430.0,0.00019178,2]
[362976412,1748541039430,-430.0,0.00019178,2]
[362976413,1748541039439,-430.0,0.00019178,2]
[362976414,1748541039449,-430.0,0.00019178,2]
[362976415,1748541039459,-430.0,0.00019178,2]
[362976416,1748541039469,-430.0,0.00019178,2]
[362976417,1748541039479,-430.0,0.00019178,2]
[362976418,1748541039489,-430.0,0.00019178,2]
[362976419,1748541039498,-430.0,0.00019178,2]
[362976420,1748541039507,-430.0,0.00019178,2]
[362976421,1748541039516,-430.0,0.00019178,2]
[362976422,1748541039525,-430.0,0.00019178,2]
[362976423,1748541039535,-430.0,0.00019178,2]
[362976424,1748541039544,-430.0,0.00019178,2]
[362976425,1748541039553,-430.0,0.00019178,2]
[362976426,1748541039563,-1444.58,0.00019178,2]
[362976427,1748541039572,-430.0,0.00019178,2]
[362976428,1748541039582,-5418.14,0.00019178,2]
[362976429,1748541039592,-430.0,0.00019178,2]
[362976430,1748541039601,-500.0,0.00019178,2]
[362976431,1748541039611,-430.0,0.00019178,2]
[362976432,1748541039621,-3463.57,0.00019178,2]
[362976433,1748541039630,-430.0,0.00019178,2]
[362976435,1748541039639,-430.0,0.00019178,2]
[362976437,1748541039652,-181.118106,0.00019178,2]
[362976439,1748541039661,-197.66,0.00019338,2]
[362976441,1748541039671,-849.36,0.00019442,3]
[362976443,1748541039680,-819.76,0.00019442,3]
[362976445,1748541039689,-483.06491903,0.00019451,2]
[362976447,1748541039698,-500.0,0.00019451,2]
[362976449,1748541039707,-662.47468101,0.00019451,2]
[362976451,1748541039717,-500.0,0.00019451,2]
[362976453,1748541039726,-662.47468101,0.00019451,2]
[362976455,1748541039735,-500.0,0.00019451,2]
[362976457,1748541039745,-662.47468101,0.00019451,2]
[362976459,1748541039757,-355.18780346,0.00019451,2]
[362976461,1748541039767,-662.47468101,0.00019451,2]
[362976463,1748541039776,-270.76792563,0.00019451,2]
[362976465,1748541039786,-500.0,0.00019451,2]
[362976467,1748541039795,-662.47468101,0.00019451,2]
[362976469,1748541039804,-662.47468101,0.00019451,2]
[362976471,1748541039814,-662.47468101,0.00019451,2]
[362976473,1748541039823,-500.0,0.00019451,2]
[362976475,1748541039835,-662.47468101,0.00019451,2]
[362976477,1748541039845,-662.47468101,0.00019451,2]
[362976479,1748541039855,-500.0,0.00019451,2]
[362976481,1748541039864,-662.47468101,0.00019451,2]
[362976483,1748541039873,-662.47468101,0.00019451,2]
[362976485,1748541039883,-500.0,0.00019451,2]
[362976487,1748541039891,-662.47468101,0.00019451,2]
[362976489,1748541039904,-662.47468101,0.00019451,2]
[362976491,1748541039913,-662.47468101,0.00019451,2]
[362976493,1748541039922,-662.47468101,0.00019451,2]
[362976495,1748541039932,-662.47468101,0.00019451,2]
[362976497,1748541039941,-662.47468101,0.00019451,2]
[362976499,1748541039950,-662.47468101,0.00019451,2]
[362976501,1748541039960,-662.47468101,0.00019451,2]
[362976503,1748541039969,-662.47468101,0.00019451,2]
[362976505,1748541039979,-662.47468101,0.00019451,2]
[362976507,1748541039988,-662.47468101,0.00019451,2]
[362976509,1748541039997,-1483.85891758,0.00019452,2]
[362976511,1748541040007,-430.0,0.00019452,2]
[362976513,1748541040015,-2240.96,0.00019452,2]
[362976515,1748541040025,-430.0,0.00019452,2]
[362976517,1748541040035,-430.0,0.00019452,2]
[362976519,1748541040044,-430.0,0.00019452,2]
[362976521,1748541040054,-430.0,0.00019452,2]
[362976523,1748541040063,-1786.22,0.00019452,2]
[362976525,1748541040073,-2518.93,0.00019452,2]
[362976527,1748541040082,-430.0,0.00019452,2]
[362976529,1748541040092,-430.0,0.00019452,2]
[362976531,1748541040102,-430.0,0.00019452,2]
[362976533,1748541040111,-430.0,0.00019452,2]
[362976536,1748541040121,-216.52,0.00019452,2]
[362976538,1748541040130,-4214.92,0.00019452,2]
[362976540,1748541040140,-3359.93,0.00019452,2]
[362976542,1748541040150,-430.0,0.00019452,2]
[362976543,1748541040160,-254.81450801,0.00019452,2]
[362976545,1748541040169,-3428.03,0.00019452,2]
[362976548,1748541040179,-6849.93,0.00019452,2]
[362976550,1748541040190,-430.0,0.00019452,2]
[362976552,1748541040200,-531.16,0.00019452,2]
[362976553,1748541040209,-430.0,0.00019452,2]
[362976555,1748541040219,-208.64412834,0.00019452,2]
[362976557,1748541040228,-430.0,0.00019452,2]
[362976560,1748541040238,-4643.88,0.00019452,2]
[362976561,1748541040247,-1693.54,0.00019452,2]
[362976563,1748541040256,-430.0,0.00019452,2]
[362976565,1748541040266,-430.0,0.00019452,2]
[362976567,1748541040275,-455.6,0.00019452,2]
[362976569,1748541040284,-2927.32,0.00019452,2]
[362976571,1748541040294,-1296.28,0.00019452,2]
[362976574,1748541040304,-430.0,0.00019452,2]
[362976576,1748541040313,-6724.51,0.00019452,2]
[362976577,1748541040322,-3938.85,0.00019452,2]
[362976579,1748541040331,-430.0,0.00019452,2]
[362976581,1748541040339,-430.0,0.00019452,2]
[362976583,1748541040349,-430.0,0.00019452,2]
[362976585,1748541040358,-430.0,0.00019452,2]
[362976587,1748541040367,-430.0,0.00019452,2]
[362976589,1748541040377,-5820.04,0.00019452,2]
[362976591,1748541040386,-430.0,0.00019452,2]
[362976593,1748541040398,-902.69,0.00019452,2]
[362976595,1748541040407,-430.0,0.00019452,2]
[362976597,1748541040417,-2152.73,0.00019452,2]
[362976599,1748541040427,-2638.56,0.00019452,2]
[362976601,1748541040436,-430.0,0.00019452,2]
[362976603,1748541040445,-430.0,0.00019452,2]
[362976605,1748541040454,-430.0,0.00019452,2]
[362976607,1748541040463,-4861.2,0.00019452,2]
[362976609,1748541040473,-167.09,0.00019452,2]
[362976611,1748541040483,-430.0,0.00019452,2]
[362976613,1748541040492,-6560.5,0.00019452,2]
[362976615,1748541040502,-430.0,0.00019452,2]
[362976617,1748541040511,-430.0,0.00019452,2]
[362976619,1748541040520,-430.0,0.00019452,2]
[362976621,1748541040530,-1116.65,0.00019452,2]
[362976623,1748541040540,-3607.36,0.00019452,2]
[362976625,1748541040549,-430.0,0.00019452,2]
[362976627,1748541040558,-430.0,0.00019452,2]
[362976629,1748541040568,-5125.56,0.00019452,2]
[362976631,1748541040577,-430.0,0.00019452,2]
[362976633,1748541040587,-430.0,0.00019452,2]
[362976635,1748541040596,-430.0,0.00019452,2]
[362976637,1748541040606,-430.0,0.00019452,2]
[362976639,1748541040616,-430.0,0.00019452,2]
[362976641,1748541040626,-430.0,0.00019452,2]
[362976643,1748541040636,-430.0,0.00019452,2]
[362976645,1748541040648,-430.0,0.00019452,2]
[362976647,1748541040657,-151.09823618,0.00019452,2]
[362976649,1748541040667,-430.0,0.00019452,2]
[362976651,1748541040676,-430.0,0.00019452,2]
[362976653,1748541040686,-1444.58,0.00019452,2]
[362976655,1748541040697,-5418.14,0.00019452,2]
[362976657,1748541040706,-430.0,0.00019452,2]
[362976659,1748541040716,-500.0,0.00019452,2]
[362976661,1748541040726,-3463.57,0.00019452,2]
[362976663,1748541040736,-430.0,0.00019452,2]
[362976666,1748541040749,-430.0,0.00019452,2]
[362976668,1748541040759,-500.0,0.00019473,2]
[362976670,1748541040769,-216.38453264,0.00019626,2]
[362976672,1748541040778,-430.0,0.00019726,2]
[362976674,1748541040789,-430.0,0.00019726,2]
[362976677,1748541040799,-430.0,0.00019726,2]
[362976679,1748541040809,-2188.1,0.00019726,2]
[362976681,1748541040819,-2731.33,0.00019726,2]
[362976682,1748541040829,-2240.96,0.00019726,2]
[362976684,1748541040839,-192.44362315,0.00019726,2]
[362976686,1748541040849,-430.0,0.00019726,2]
[362976688,1748541040858,-430.0,0.00019726,2]
[362976690,1748541040868,-430.0,0.00019726,2]
[362976692,1748541040877,-1786.22,0.00019726,2]
[362976695,1748541040887,-2518.93,0.00019726,2]
[362976697,1748541040899,-430.0,0.00019726,2]
[362976698,1748541040908,-4214.92,0.00019726,2]
[362976700,1748541040917,-3359.93,0.00019726,2]
[362976702,1748541040926,-3428.03,0.00019726,2]
[362976704,1748541040935,-6849.93,0.00019726,2]
[362976706,1748541040944,-430.0,0.00019726,2]
[362976708,1748541040954,-531.16,0.00019726,2]
[362976710,1748541040963,-4643.88,0.00019726,2]
[362976712,1748541040973,-1693.54,0.00019726,2]
[362976714,1748541040982,-430.0,0.00019726,2]
[362976716,1748541040991,-2927.32,0.00019726,2]
[362976718,1748541041001,-1296.28,0.00019726,2]
[362976720,1748541041010,-430.0,0.00019726,2]
[362976722,1748541041019,-6724.51,0.00019726,2]
[362976724,1748541041028,-3938.85,0.00019726,2]
[362976726,1748541041038,-430.0,0.00019726,2]
[362976728,1748541041047,-430.0,0.00019726,2]
[362976730,1748541041057,-5820.04,0.00019726,2]
[362976732,1748541041066,-430.0,0.00019726,2]
[362976734,1748541041076,-902.69,0.00019726,2]
[362976737,1748541041086,-389.42,0.00019726,2]
[362976739,1748541041095,-2152.73,0.00019726,2]
[362976740,1748541041104,-2638.56,0.00019726,2]
[362976742,1748541041114,-430.0,0.00019726,2]
[362976745,1748541041123,-4861.2,0.00019726,2]
[362976747,1748541041133,-6560.5,0.00019726,2]
[362976748,1748541041142,-430.0,0.00019726,2]
[362976751,1748541041154,-560.29070921,0.00019726,2]
[362976753,1748541041164,-1116.65,0.00019726,2]
[362976755,1748541041174,-3607.36,0.00019726,2]
[362976757,1748541041184,-5125.56,0.00019726,2]
[362976759,1748541041194,-430.0,0.00019726,2]
[362976760,1748541041203,-430.0,0.00019726,2]
[362976763,1748541041213,-430.0,0.00019726,2]
[362976765,1748541041223,-288.13098849,0.00019726,2]
[362976767,1748541041232,-1444.58,0.00019726,2]
[362976769,1748541041242,-5418.14,0.00019726,2]
[362976770,1748541041252,-3463.57,0.00019726,2]
[362976773,1748541041262,-280.27712963,0.00019726,2]
[362976775,1748541041271,-430.0,0.00019726,2]
[362976777,1748541041281,-1008.64906226,0.000199,2]
[362976779,1748541041290,-430.0,0.0002,2]
[362976781,1748541041299,-430.0,0.0002,2]
[362976783,1748541041309,-430.0,0.0002,2]
[362976785,1748541041319,-2188.1,0.0002,2]
[362976787,1748541041329,-2731.33,0.0002,2]
[362976789,1748541041338,-2240.96,0.0002,2]
[362976791,1748541041348,-430.0,0.0002,2]
[362976793,1748541041357,-430.0,0.0002,2]
[362976795,1748541041366,-1786.22,0.0002,2]
[362976797,1748541041376,-2518.93,0.0002,2]
[362976799,1748541041385,-430.0,0.0002,2]
[362976801,1748541041394,-4214.92,0.0002,2]
[362976804,1748541041405,-3359.93,0.0002,2]
[362976806,1748541041415,-3428.03,0.0002,2]
[362976807,1748541041424,-6849.93,0.0002,2]
[362976809,1748541041434,-430.0,0.0002,2]
[362976811,1748541041445,-531.16,0.0002,2]
[362976813,1748541041454,-4643.88,0.0002,2]
[362976815,1748541041463,-1693.54,0.0002,2]
[362976817,1748541041472,-430.0,0.0002,2]
[362976820,1748541041483,-2927.32,0.0002,2]
[362976821,1748541041492,-1296.28,0.0002,2]
[362976823,1748541041501,-6724.51,0.0002,2]
[362976826,1748541041511,-3938.85,0.0002,2]
[362976827,1748541041520,-445.43,0.0002,2]
[362976830,1748541041530,-430.0,0.0002,2]
[362976832,1748541041539,-5820.04,0.0002,2]
[362976834,1748541041548,-902.69,0.0002,2]
[362976836,1748541041557,-2152.73,0.0002,2]
[362976838,1748541041566,-2638.56,0.0002,2]
[362976840,1748541041575,-4861.2,0.0002,2]
[362976841,1748541041584,-6560.5,0.0002,2]